[Event "*** SCC Grand Prix: Titled Tuesday Blitz"]
[Site "Chess.com"]
[Date "2020.08.04"]
[Round "9"]
[White "Lion-Al-Messi"]
[Black "Flopezin"]
[Result "1-0"]
[WhiteElo "2487"]
[BlackElo "2336"]
[TimeControl "180+1"]
[EndTime "15:23:57 PDT"]
[Termination "Lion-Al-Messi won by resignation"]

1. e4 {[%clk 0:03:00.9]} 1... e5 {[%clk 0:03:00]} 2. Nf3 {[%clk 0:03:01]} 2...
Nc6 {[%clk 0:03:00]} 3. Bb5 {[%clk 0:03:01.1]} 3... a6 {[%clk 0:03:00.2]} 4. Ba4
{[%clk 0:03:01.3]} 4... Nf6 {[%clk 0:03:00.1]} 5. O-O {[%clk 0:03:01.5]} 5...
Bc5 {[%clk 0:03:00.5]} 6. c3 {[%clk 0:03:01.1]} 6... b5 {[%clk 0:03:01.1]} 7.
Bb3 {[%clk 0:03:00.6]} 7... d6 {[%clk 0:03:01.8]} 8. a4 {[%clk 0:02:59.3]} 8...
Bg4 {[%clk 0:03:01]} 9. h3 {[%clk 0:02:53.1]} 9... Bxf3 {[%clk 0:03:00.2]} 10.
Qxf3 {[%clk 0:02:52.8]} 10... O-O {[%clk 0:03:00.7]} 11. d3 {[%clk 0:02:52]}
11... h6 {[%clk 0:03:00.8]} 12. Be3 {[%clk 0:02:50.5]} 12... Bxe3 {[%clk
0:03:00.3]} 13. fxe3 {[%clk 0:02:51.4]} 13... Na5 {[%clk 0:02:57.7]} 14. Bc2
{[%clk 0:02:50.8]} 14... c5 {[%clk 0:02:58.2]} 15. Nd2 {[%clk 0:02:50.2]} 15...
Qb6 {[%clk 0:02:54.3]} 16. Rf2 {[%clk 0:02:48.7]} 16... b4 {[%clk 0:02:53.2]}
17. Nf1 {[%clk 0:02:47.7]} 17... bxc3 {[%clk 0:02:50.3]} 18. bxc3 {[%clk
0:02:48.6]} 18... Rab8 {[%clk 0:02:49.1]} 19. Rb1 {[%clk 0:02:48.2]} 19... Qc7
{[%clk 0:02:46.1]} 20. Ng3 {[%clk 0:02:43.2]} 20... Rxb1+ {[%clk 0:02:45]} 21.
Bxb1 {[%clk 0:02:44.1]} 21... Qb6 {[%clk 0:02:45.4]} 22. Bc2 {[%clk 0:02:44.3]}
22... Kh7 {[%clk 0:02:41.3]} 23. Nf5 {[%clk 0:02:44.3]} 23... Ng8 {[%clk
0:02:41.1]} 24. d4 {[%clk 0:02:39.9]} 24... g6 {[%clk 0:02:30.1]} 25. Ng3 {[%clk
0:02:36.4]} 25... cxd4 {[%clk 0:02:29.9]} 26. exd4 {[%clk 0:02:35.4]} 26... exd4
{[%clk 0:02:30.5]} 27. cxd4 {[%clk 0:02:35.1]} 27... Qxd4 {[%clk 0:02:30.8]} 28.
h4 {[%clk 0:02:34.4]} 28... Nc4 {[%clk 0:02:28.4]} 29. h5 {[%clk 0:02:33.4]}
29... Ne5 {[%clk 0:02:23.6]} 30. hxg6+ {[%clk 0:02:33.1]} 30... Nxg6 {[%clk
0:02:16.4]} 31. e5 {[%clk 0:02:31.7]} 31... Ne7 {[%clk 0:02:07.4]} 32. e6 {[%clk
0:02:28.4]} 32... f6 {[%clk 0:01:35.5]} 33. Nf5 {[%clk 0:02:21]} 33... Nxf5
{[%clk 0:01:33.9]} 34. Qxf5 {[%clk 0:02:20.1]} 34... Qa1+ {[%clk 0:01:32.4]} 35.
Kh2 {[%clk 0:02:19.1]} 35... Qe5+ {[%clk 0:01:32.9]} 36. Qxe5 {[%clk 0:02:17.5]}
36... dxe5 {[%clk 0:01:33.8]} 37. e7 {[%clk 0:02:17.8]} 37... Re8 {[%clk
0:01:24.3]} 38. Rxf6 {[%clk 0:02:17.8]} 38... Rxe7 {[%clk 0:01:24.3]} 39. Rxg6
{[%clk 0:02:17.9]} 39... Rc7 {[%clk 0:01:22]} 40. Rc6+ {[%clk 0:02:17.1]} 1-0

[Event "*** SCC Grand Prix: Titled Tuesday Blitz"]
[Site "Chess.com"]
[Date "2020.08.04"]
[Round "9"]
[White "MF1966Idrisov"]
[Black "FMJoseHerrera"]
[Result "1-0"]
[WhiteElo "2368"]
[BlackElo "2489"]
[TimeControl "180+1"]
[EndTime "15:24:09 PDT"]
[Termination "MF1966Idrisov won by resignation"]

1. Nf3 {[%clk 0:03:00.9]} 1... f6 {[%clk 0:03:00.9]} 2. d4 {[%clk 0:02:58.9]}
2... g6 {[%clk 0:03:01.2]} 3. b3 {[%clk 0:02:58.3]} 3... Kf7 {[%clk 0:03:01.7]}
4. Bb2 {[%clk 0:02:58.5]} 4... Kg7 {[%clk 0:03:02.3]} 5. c4 {[%clk 0:02:58.7]}
5... d6 {[%clk 0:03:02.3]} 6. g3 {[%clk 0:02:59]} 6... h5 {[%clk 0:03:01.7]} 7.
Bg2 {[%clk 0:02:58.5]} 7... Nc6 {[%clk 0:03:00.7]} 8. Nc3 {[%clk 0:02:56.6]}
8... Nh6 {[%clk 0:02:57.1]} 9. h3 {[%clk 0:02:55]} 9... Nf7 {[%clk 0:02:55.2]}
10. e4 {[%clk 0:02:52.4]} 10... e5 {[%clk 0:02:54.9]} 11. O-O {[%clk 0:02:51.5]}
11... Be7 {[%clk 0:02:47.7]} 12. Nd5 {[%clk 0:02:51.3]} 12... Bd7 {[%clk
0:02:42.4]} 13. Rc1 {[%clk 0:02:49.5]} 13... Qc8 {[%clk 0:02:33.7]} 14. Kh2
{[%clk 0:02:48.1]} 14... Bd8 {[%clk 0:02:12.8]} 15. c5 {[%clk 0:02:41.1]} 15...
dxc5 {[%clk 0:02:09.9]} 16. dxe5 {[%clk 0:02:39]} 16... Ncxe5 {[%clk 0:02:09.4]}
17. Nxe5 {[%clk 0:02:37.1]} 17... Nxe5 {[%clk 0:02:04.5]} 18. f4 {[%clk
0:02:36.3]} 18... Nc6 {[%clk 0:02:03]} 19. Rxc5 {[%clk 0:02:29]} 19... h4 {[%clk
0:01:57.8]} 20. g4 {[%clk 0:02:27.1]} 20... Rf8 {[%clk 0:01:36]} 21. g5 {[%clk
0:02:26.6]} 21... Kh7 {[%clk 0:01:32]} 22. Nxf6+ {[%clk 0:02:23.2]} 22... Bxf6
{[%clk 0:01:31.6]} 23. Bxf6 {[%clk 0:02:22.7]} 23... Qe8 {[%clk 0:01:29.5]} 24.
Qe1 {[%clk 0:02:19.1]} 24... Rxf6 {[%clk 0:01:18.4]} 25. Qxh4+ {[%clk
0:02:13.5]} 25... Kg8 {[%clk 0:01:18.5]} 26. gxf6 {[%clk 0:02:07.6]} 26... Qf8
{[%clk 0:01:19.1]} 27. Rg5 {[%clk 0:02:02]} 27... Be8 {[%clk 0:01:19.1]} 28. e5
{[%clk 0:01:59.4]} 28... Qb4 {[%clk 0:01:16.3]} 29. Bd5+ {[%clk 0:01:55.8]} 1-0

[Event "*** SCC Grand Prix: Titled Tuesday Blitz"]
[Site "Chess.com"]
[Date "2020.08.04"]
[Round "9"]
[White "vova-79"]
[Black "creativity"]
[Result "1-0"]
[WhiteElo "2433"]
[BlackElo "2053"]
[TimeControl "180+1"]
[EndTime "15:24:13 PDT"]
[Termination "vova-79 won by resignation"]

1. d4 {[%clk 0:03:00.9]} 1... Nf6 {[%clk 0:02:56.3]} 2. c4 {[%clk 0:03:00.5]}
2... g6 {[%clk 0:02:52.7]} 3. Nc3 {[%clk 0:02:59.6]} 3... Bg7 {[%clk 0:02:51.9]}
4. Nf3 {[%clk 0:02:59.6]} 4... O-O {[%clk 0:02:51.5]} 5. g3 {[%clk 0:02:59.8]}
5... d6 {[%clk 0:02:49.8]} 6. Bg2 {[%clk 0:02:59.1]} 6... Nbd7 {[%clk
0:02:48.7]} 7. O-O {[%clk 0:02:58.3]} 7... c6 {[%clk 0:02:38.6]} 8. e4 {[%clk
0:02:57.9]} 8... Qc7 {[%clk 0:02:34.5]} 9. h3 {[%clk 0:02:57.8]} 9... e5 {[%clk
0:02:29.9]} 10. Be3 {[%clk 0:02:58.1]} 10... a5 {[%clk 0:02:19.1]} 11. Qc2
{[%clk 0:02:56.8]} 11... exd4 {[%clk 0:02:17.1]} 12. Nxd4 {[%clk 0:02:56.8]}
12... Re8 {[%clk 0:02:16.1]} 13. Rad1 {[%clk 0:02:57.1]} 13... Nc5 {[%clk
0:02:03.6]} 14. Ndb5 {[%clk 0:02:55.7]} 14... cxb5 {[%clk 0:02:02.5]} 15. Nxb5
{[%clk 0:02:56.6]} 15... Qe7 {[%clk 0:01:09.3]} 16. Nxd6 {[%clk 0:02:52.6]}
16... Ncxe4 {[%clk 0:01:07.9]} 17. Nxe8 {[%clk 0:02:47.7]} 17... Qxe8 {[%clk
0:01:06.5]} 18. Rfe1 {[%clk 0:02:46.9]} 18... Bf5 {[%clk 0:00:58.4]} 19. g4
{[%clk 0:02:45.2]} 19... Nc3 {[%clk 0:00:31.7]} 20. Qxc3 {[%clk 0:02:33.5]}
20... Nxg4 {[%clk 0:00:30.9]} 21. Bd4 {[%clk 0:02:31.7]} 1-0

[Event "*** SCC Grand Prix: Titled Tuesday Blitz"]
[Site "Chess.com"]
[Date "2020.08.04"]
[Round "9"]
[White "German_Bazeev"]
[Black "bratkoo"]
[Result "0-1"]
[WhiteElo "2729"]
[BlackElo "2532"]
[TimeControl "180+1"]
[EndTime "15:24:44 PDT"]
[Termination "bratkoo won on time"]

1. d4 {[%clk 0:03:00.9]} 1... e6 {[%clk 0:02:59.2]} 2. c4 {[%clk 0:03:00.8]}
2... d5 {[%clk 0:02:59.1]} 3. Nc3 {[%clk 0:03:00.8]} 3... Nf6 {[%clk 0:02:57]}
4. Nf3 {[%clk 0:03:00.8]} 4... Be7 {[%clk 0:02:55.4]} 5. Bg5 {[%clk 0:03:00.9]}
5... O-O {[%clk 0:02:55.5]} 6. e3 {[%clk 0:03:00.3]} 6... h6 {[%clk 0:02:56.1]}
7. Bf4 {[%clk 0:03:00.1]} 7... Nbd7 {[%clk 0:02:51.9]} 8. Qc2 {[%clk 0:02:59.5]}
8... c5 {[%clk 0:02:45.3]} 9. dxc5 {[%clk 0:02:54.3]} 9... Nxc5 {[%clk
0:02:44.9]} 10. O-O-O {[%clk 0:02:46]} 10... Qa5 {[%clk 0:02:34]} 11. g4 {[%clk
0:02:45.6]} 11... Nfe4 {[%clk 0:02:31.9]} 12. Be5 {[%clk 0:02:26]} 12... Nxc3
{[%clk 0:01:57.3]} 13. Qxc3 {[%clk 0:02:10.8]} 13... Qxa2 {[%clk 0:01:56.9]} 14.
Bxg7 {[%clk 0:02:02.2]} 14... Ne4 {[%clk 0:01:56.7]} 15. Qd4 {[%clk 0:01:53.2]}
15... Bc5 {[%clk 0:01:52.9]} 0-1

[Event "*** SCC Grand Prix: Titled Tuesday Blitz"]
[Site "Chess.com"]
[Date "2020.08.04"]
[Round "9"]
[White "arminmusovic"]
[Black "Fortitudine"]
[Result "0-1"]
[WhiteElo "2468"]
[BlackElo "2270"]
[TimeControl "180+1"]
[EndTime "15:24:44 PDT"]
[Termination "Fortitudine won by resignation"]

1. a3 {[%clk 0:03:00.9]} 1... g6 {[%clk 0:02:58.7]} 2. Nc3 {[%clk 0:03:01.8]}
2... Bg7 {[%clk 0:02:58.7]} 3. e4 {[%clk 0:03:02.4]} 3... c5 {[%clk 0:02:58.8]}
4. Nf3 {[%clk 0:03:02.3]} 4... Nc6 {[%clk 0:02:58.1]} 5. Bc4 {[%clk 0:03:02.8]}
5... e6 {[%clk 0:02:57.3]} 6. Ba2 {[%clk 0:03:03.4]} 6... Nge7 {[%clk
0:02:57.5]} 7. O-O {[%clk 0:03:04]} 7... O-O {[%clk 0:02:57.3]} 8. Re1 {[%clk
0:03:04.7]} 8... b6 {[%clk 0:02:57.4]} 9. d3 {[%clk 0:03:05.2]} 9... Bb7 {[%clk
0:02:57]} 10. Bg5 {[%clk 0:03:05.4]} 10... h6 {[%clk 0:02:57.1]} 11. Bh4 {[%clk
0:03:05.8]} 11... d6 {[%clk 0:02:56.5]} 12. Bg3 {[%clk 0:03:02.5]} 12... a6
{[%clk 0:02:54.8]} 13. h3 {[%clk 0:03:02.9]} 13... Qd7 {[%clk 0:02:54.9]} 14.
Rb1 {[%clk 0:03:02.8]} 14... b5 {[%clk 0:02:53.7]} 15. Ne2 {[%clk 0:03:03.2]}
15... Rac8 {[%clk 0:02:52.7]} 16. d4 {[%clk 0:03:03.6]} 16... cxd4 {[%clk
0:02:52.7]} 17. Nexd4 {[%clk 0:03:04.5]} 17... Nxd4 {[%clk 0:02:53]} 18. Nxd4
{[%clk 0:03:05.4]} 18... Nc6 {[%clk 0:02:50.8]} 19. Nf3 {[%clk 0:02:54.5]} 19...
Rfd8 {[%clk 0:02:47.9]} 20. Qd2 {[%clk 0:02:46.4]} 20... Na5 {[%clk 0:02:46.4]}
21. Qxa5 {[%clk 0:02:42.5]} 21... Rxc2 {[%clk 0:02:43.7]} 22. Rbd1 {[%clk
0:02:38.8]} 22... Qc8 {[%clk 0:02:27.2]} 23. Rxd6 {[%clk 0:02:17.7]} 23... Rxd6
{[%clk 0:02:24.7]} 24. Bxd6 {[%clk 0:02:18.6]} 24... Rxb2 {[%clk 0:02:23.1]} 25.
Bb1 {[%clk 0:02:03]} 25... Bc3 {[%clk 0:02:07.1]} 26. Qb6 {[%clk 0:00:38.4]}
26... Bxe1 {[%clk 0:02:04.7]} 27. Bd3 {[%clk 0:00:36.2]} 27... Bxf2+ {[%clk
0:02:00.9]} 0-1

[Event "*** SCC Grand Prix: Titled Tuesday Blitz"]
[Site "Chess.com"]
[Date "2020.08.04"]
[Round "9"]
[White "Martins-BR"]
[Black "dosto07"]
[Result "0-1"]
[WhiteElo "2211"]
[BlackElo "2294"]
[TimeControl "180+1"]
[EndTime "15:25:02 PDT"]
[Termination "dosto07 won by resignation"]

1. e4 {[%clk 0:03:00.9]} 1... e5 {[%clk 0:02:59.3]} 2. Nf3 {[%clk 0:03:00.6]}
2... Nc6 {[%clk 0:02:58.1]} 3. d4 {[%clk 0:03:01]} 3... exd4 {[%clk 0:02:57]} 4.
Nxd4 {[%clk 0:03:01.9]} 4... Nf6 {[%clk 0:02:56.9]} 5. Nc3 {[%clk 0:03:01.6]}
5... Bb4 {[%clk 0:02:55.7]} 6. Nxc6 {[%clk 0:03:01.2]} 6... bxc6 {[%clk
0:02:56.3]} 7. Bd3 {[%clk 0:03:01.4]} 7... d5 {[%clk 0:02:56.8]} 8. exd5 {[%clk
0:03:02.2]} 8... O-O {[%clk 0:02:56.9]} 9. O-O {[%clk 0:03:02]} 9... cxd5 {[%clk
0:02:57.5]} 10. h3 {[%clk 0:03:02]} 10... h6 {[%clk 0:02:56.6]} 11. Qf3 {[%clk
0:03:01.4]} 11... c6 {[%clk 0:02:54.3]} 12. Bf4 {[%clk 0:03:00.6]} 12... Re8
{[%clk 0:02:53.7]} 13. Ne2 {[%clk 0:02:55.9]} 13... Bd6 {[%clk 0:02:52.4]} 14.
Ng3 {[%clk 0:02:50.4]} 14... Rb8 {[%clk 0:02:49.9]} 15. b3 {[%clk 0:02:49.5]}
15... Be6 {[%clk 0:02:34.1]} 16. Rad1 {[%clk 0:02:46.5]} 16... c5 {[%clk
0:02:26.9]} 17. c4 {[%clk 0:02:39.6]} 17... d4 {[%clk 0:02:26.7]} 18. Rfe1
{[%clk 0:02:38.1]} 18... Bxf4 {[%clk 0:02:20.7]} 19. Qxf4 {[%clk 0:02:37.3]}
19... a5 {[%clk 0:02:12.8]} 20. Bc2 {[%clk 0:02:33.2]} 20... Qb6 {[%clk
0:02:10.8]} 21. a4 {[%clk 0:02:29.5]} 21... Bd7 {[%clk 0:02:08.5]} 22. Kf1
{[%clk 0:02:20.5]} 22... Rbd8 {[%clk 0:02:06.8]} 23. Rxe8+ {[%clk 0:02:13.9]}
23... Rxe8 {[%clk 0:02:06.2]} 24. Nf5 {[%clk 0:01:48.4]} 24... Bxf5 {[%clk
0:02:04.6]} 25. Qxf5 {[%clk 0:01:48.2]} 25... g6 {[%clk 0:01:59.8]} 26. Qf4
{[%clk 0:01:41.3]} 26... Kg7 {[%clk 0:01:58.5]} 27. Re1 {[%clk 0:01:41.2]} 27...
Rxe1+ {[%clk 0:01:57.3]} 28. Kxe1 {[%clk 0:01:41]} 28... Qe6+ {[%clk 0:01:52.4]}
29. Kd2 {[%clk 0:01:35.1]} 29... Nd7 {[%clk 0:01:36.5]} 30. Bd3 {[%clk
0:01:29.9]} 30... Ne5 {[%clk 0:01:35.6]} 31. Qe4 {[%clk 0:01:24.8]} 31... Qf6
{[%clk 0:01:29.9]} 32. f4 {[%clk 0:01:21.7]} 32... Nc6 {[%clk 0:01:24.2]} 33. g3
{[%clk 0:01:16.6]} 33... Nb4 {[%clk 0:01:22.3]} 34. Qd5 {[%clk 0:01:02]} 34...
Nxd5 {[%clk 0:01:20.8]} 0-1

[Event "*** SCC Grand Prix: Titled Tuesday Blitz"]
[Site "Chess.com"]
[Date "2020.08.04"]
[Round "9"]
[White "RobertoJBM"]
[Black "Bodnar_Mykola"]
[Result "1-0"]
[WhiteElo "2714"]
[BlackElo "2477"]
[TimeControl "180+1"]
[EndTime "15:25:45 PDT"]
[Termination "RobertoJBM won by resignation"]

1. d4 {[%clk 0:03:00.9]} 1... Nf6 {[%clk 0:02:59.9]} 2. c4 {[%clk 0:03:00.4]}
2... e6 {[%clk 0:03:00.2]} 3. Nc3 {[%clk 0:02:59.5]} 3... d5 {[%clk 0:02:58.5]}
4. cxd5 {[%clk 0:02:58.7]} 4... exd5 {[%clk 0:02:59.4]} 5. Bg5 {[%clk
0:02:57.8]} 5... Be7 {[%clk 0:02:58.5]} 6. e3 {[%clk 0:02:57.7]} 6... c6 {[%clk
0:02:56.8]} 7. Bd3 {[%clk 0:02:57.5]} 7... O-O {[%clk 0:02:56.4]} 8. Qc2 {[%clk
0:02:57.5]} 8... Nbd7 {[%clk 0:02:55.8]} 9. Nge2 {[%clk 0:02:57.4]} 9... Re8
{[%clk 0:02:55.7]} 10. O-O {[%clk 0:02:57.6]} 10... Nf8 {[%clk 0:02:53.9]} 11.
Rad1 {[%clk 0:02:57.2]} 11... g6 {[%clk 0:02:53.8]} 12. f3 {[%clk 0:02:57]}
12... Ne6 {[%clk 0:02:53.8]} 13. Bh4 {[%clk 0:02:56.8]} 13... c5 {[%clk
0:02:43.6]} 14. dxc5 {[%clk 0:02:41.9]} 14... Bxc5 {[%clk 0:02:34.8]} 15. Bxf6
{[%clk 0:02:00.3]} 15... Bxe3+ {[%clk 0:02:22.4]} 16. Kh1 {[%clk 0:02:00.4]}
16... Qxf6 {[%clk 0:02:21.7]} 17. Nxd5 {[%clk 0:02:00.3]} 17... Qe5 {[%clk
0:02:16.7]} 18. Bb5 {[%clk 0:01:55]} 18... Rf8 {[%clk 0:01:45.6]} 19. f4 {[%clk
0:01:53.7]} 19... Bxf4 {[%clk 0:00:42.2]} 20. Nexf4 {[%clk 0:01:50.1]} 20...
Nxf4 {[%clk 0:00:42.2]} 21. Rxf4 {[%clk 0:01:44.1]} 21... Bf5 {[%clk 0:00:42.1]}
22. Qc3 {[%clk 0:01:38.3]} 22... Qxc3 {[%clk 0:00:33.3]} 23. Nxc3 {[%clk
0:01:35.6]} 23... a6 {[%clk 0:00:31.5]} 24. Ba4 {[%clk 0:01:33.5]} 24... b5
{[%clk 0:00:30.5]} 25. Bb3 {[%clk 0:01:33.4]} 25... Rad8 {[%clk 0:00:29.1]} 26.
Rfd4 {[%clk 0:01:32.2]} 26... Rxd4 {[%clk 0:00:28.9]} 27. Rxd4 {[%clk
0:01:33.1]} 27... Re8 {[%clk 0:00:29.8]} 28. Kg1 {[%clk 0:01:31.5]} 28... Kg7
{[%clk 0:00:28.2]} 29. Kf2 {[%clk 0:01:31.1]} 29... h5 {[%clk 0:00:28.3]} 30. h3
{[%clk 0:01:29.4]} 30... g5 {[%clk 0:00:27.5]} 31. Rd6 {[%clk 0:01:24.8]} 31...
Bc8 {[%clk 0:00:21.2]} 32. Rc6 {[%clk 0:01:18.8]} 32... Bb7 {[%clk 0:00:17.2]}
33. Rc7 {[%clk 0:01:18]} 1-0

[Event "*** SCC Grand Prix: Titled Tuesday Blitz"]
[Site "Chess.com"]
[Date "2020.08.04"]
[Round "9"]
[White "Iskusnyh"]
[Black "KarstenHansch"]
[Result "1-0"]
[WhiteElo "2565"]
[BlackElo "2406"]
[TimeControl "180+1"]
[EndTime "15:26:04 PDT"]
[Termination "Iskusnyh won by resignation"]

1. d4 {[%clk 0:03:00.9]} 1... d5 {[%clk 0:02:59.5]} 2. c4 {[%clk 0:03:01]} 2...
e6 {[%clk 0:03:00.4]} 3. Nf3 {[%clk 0:03:00.8]} 3... Nf6 {[%clk 0:03:00.7]} 4.
g3 {[%clk 0:03:01.1]} 4... Be7 {[%clk 0:03:01.3]} 5. Bg2 {[%clk 0:03:00.8]} 5...
O-O {[%clk 0:03:00.2]} 6. Qc2 {[%clk 0:03:00.9]} 6... c5 {[%clk 0:02:57.3]} 7.
O-O {[%clk 0:02:53.4]} 7... cxd4 {[%clk 0:02:55.9]} 8. Nxd4 {[%clk 0:02:52.8]}
8... Nc6 {[%clk 0:02:56.2]} 9. Nxc6 {[%clk 0:02:51.7]} 9... bxc6 {[%clk
0:02:57]} 10. b3 {[%clk 0:02:51.6]} 10... Qb6 {[%clk 0:02:54.4]} 11. Nc3 {[%clk
0:02:48.6]} 11... Rd8 {[%clk 0:02:42.4]} 12. Be3 {[%clk 0:02:45.6]} 12... d4
{[%clk 0:02:37.9]} 13. Na4 {[%clk 0:02:44.8]} 13... Qc7 {[%clk 0:02:35.7]} 14.
Bg5 {[%clk 0:02:42.2]} 14... Rb8 {[%clk 0:02:34.3]} 15. Rad1 {[%clk 0:02:35.4]}
15... c5 {[%clk 0:02:33.3]} 16. Nb2 {[%clk 0:02:25.1]} 16... h6 {[%clk
0:02:20.7]} 17. Bc1 {[%clk 0:02:24]} 17... e5 {[%clk 0:02:12.6]} 18. Nd3 {[%clk
0:02:17.8]} 18... Bf5 {[%clk 0:02:09.5]} 19. Qb2 {[%clk 0:02:02.9]} 19... e4
{[%clk 0:01:42.9]} 20. Nf4 {[%clk 0:01:48.3]} 20... g5 {[%clk 0:01:36]} 21. Nd5
{[%clk 0:01:47.8]} 21... Nxd5 {[%clk 0:01:35.1]} 22. cxd5 {[%clk 0:01:48.4]}
22... Rxd5 {[%clk 0:01:34.7]} 23. Qc2 {[%clk 0:01:46]} 23... Qe5 {[%clk
0:01:12.5]} 24. Qc4 {[%clk 0:01:35]} 24... d3 {[%clk 0:00:52.4]} 25. exd3 {[%clk
0:01:30.7]} 25... Rxd3 {[%clk 0:00:51.7]} 26. Rde1 {[%clk 0:01:27.1]} 26... Qd4
{[%clk 0:00:19.1]} 27. Qa6 {[%clk 0:01:24.3]} 27... Bf6 {[%clk 0:00:16.7]} 28.
Be3 {[%clk 0:01:21]} 28... Qb2 {[%clk 0:00:15.4]} 29. Bxc5 {[%clk 0:01:13.7]}
29... Bd4 {[%clk 0:00:14.5]} 30. Bxd4 {[%clk 0:01:12.3]} 30... Qxd4 {[%clk
0:00:15.4]} 31. Qxh6 {[%clk 0:01:12.2]} 31... g4 {[%clk 0:00:14.7]} 32. Qf4
{[%clk 0:01:10.6]} 32... Rb5 {[%clk 0:00:13.2]} 33. Bxe4 {[%clk 0:01:08.9]}
33... Bxe4 {[%clk 0:00:13.2]} 34. Rxe4 {[%clk 0:01:08.4]} 1-0

[Event "*** SCC Grand Prix: Titled Tuesday Blitz"]
[Site "Chess.com"]
[Date "2020.08.04"]
[Round "9"]
[White "abfchess"]
[Black "TST2014"]
[Result "0-1"]
[WhiteElo "2169"]
[BlackElo "2509"]
[TimeControl "180+1"]
[EndTime "15:26:04 PDT"]
[Termination "TST2014 won by resignation"]

1. d4 {[%clk 0:03:00.9]} 1... Nf6 {[%clk 0:02:56]} 2. Nf3 {[%clk 0:03:00.7]}
2... g6 {[%clk 0:02:53.2]} 3. Bg5 {[%clk 0:03:00.2]} 3... Bg7 {[%clk 0:02:53]}
4. Nbd2 {[%clk 0:02:58.6]} 4... O-O {[%clk 0:02:52.5]} 5. c3 {[%clk 0:02:58.6]}
5... d6 {[%clk 0:02:52.5]} 6. e4 {[%clk 0:02:58.6]} 6... Nc6 {[%clk 0:02:46.9]}
7. Be2 {[%clk 0:02:57.8]} 7... h6 {[%clk 0:02:46.1]} 8. Bh4 {[%clk 0:02:57.5]}
8... e5 {[%clk 0:02:45.6]} 9. dxe5 {[%clk 0:02:58.4]} 9... dxe5 {[%clk 0:02:45]}
10. O-O {[%clk 0:02:58.1]} 10... g5 {[%clk 0:02:44.4]} 11. Bg3 {[%clk
0:02:57.9]} 11... Qe7 {[%clk 0:02:42.8]} 12. Qc2 {[%clk 0:02:57.5]} 12... Nh5
{[%clk 0:02:38.2]} 13. Rfe1 {[%clk 0:02:57.6]} 13... Nf4 {[%clk 0:02:37.7]} 14.
Bf1 {[%clk 0:02:57.8]} 14... Be6 {[%clk 0:02:32.9]} 15. b4 {[%clk 0:02:57.7]}
15... a6 {[%clk 0:02:31.7]} 16. a4 {[%clk 0:02:55.4]} 16... Ng6 {[%clk
0:02:23.8]} 17. Bc4 {[%clk 0:02:53.2]} 17... g4 {[%clk 0:02:19.5]} 18. Bxe6
{[%clk 0:02:38.8]} 18... fxe6 {[%clk 0:02:17.8]} 19. b5 {[%clk 0:02:23.1]} 19...
Na5 {[%clk 0:02:13.8]} 20. c4 {[%clk 0:02:09.6]} 20... gxf3 {[%clk 0:02:09.1]}
21. Nxf3 {[%clk 0:02:10.5]} 21... Qc5 {[%clk 0:02:05]} 22. Rac1 {[%clk
0:02:04.9]} 22... Rad8 {[%clk 0:01:39.9]} 23. h4 {[%clk 0:02:04.3]} 23... Nf4
{[%clk 0:01:38.9]} 24. Bxf4 {[%clk 0:01:49.7]} 24... exf4 {[%clk 0:01:38.4]} 25.
e5 {[%clk 0:01:50]} 25... Rf5 {[%clk 0:01:30.4]} 26. Qc3 {[%clk 0:01:40.3]}
26... b6 {[%clk 0:01:20.5]} 27. bxa6 {[%clk 0:01:34.6]} 27... Nc6 {[%clk
0:01:18.4]} 28. Rcd1 {[%clk 0:01:28.8]} 28... Rff8 {[%clk 0:01:14.5]} 29. Rxd8
{[%clk 0:01:24.9]} 29... Rxd8 {[%clk 0:01:13.1]} 30. h5 {[%clk 0:01:25.4]} 30...
Qa5 {[%clk 0:01:06.7]} 31. Qc2 {[%clk 0:01:24.4]} 31... Nd4 {[%clk 0:01:03.2]}
32. Qe4 {[%clk 0:01:18.4]} 32... Nxf3+ {[%clk 0:00:58.9]} 33. gxf3 {[%clk
0:01:19.3]} 33... Qxa6 {[%clk 0:00:55.8]} 34. Kh2 {[%clk 0:01:19.5]} 34... Qxa4
{[%clk 0:00:51.6]} 35. Rg1 {[%clk 0:01:19.5]} 35... Qd7 {[%clk 0:00:51.3]} 36.
Qg6 {[%clk 0:01:18.6]} 36... Kh8 {[%clk 0:00:46]} 37. Rg4 {[%clk 0:01:06.3]}
37... Rf8 {[%clk 0:00:45]} 38. Qe4 {[%clk 0:01:00.2]} 38... Rf5 {[%clk
0:00:37.8]} 39. Rxf4 {[%clk 0:00:57.9]} 39... Bxe5 {[%clk 0:00:36.6]} 0-1